bitfinex/quotes_ETHUSD_20250507
["timestamp","ask_amount","ask_price","bid_price","bid_amount"]
[1746610411315,0.50660958,1841.7,1841.6,5.42991764]
[1746610428075,0.8258,1841.6,1841.3,5.43077106]
[1746610428281,0.50660958,1841.5,1841.3,5.43074793]
[1746610428634,0.8258,1841.6,1841.4,5.43065059]
[1746610428859,1.75680322,1841.6,1841.4,5.43065059]
[1746610429058,0.50752593,1841.5,1841.4,5.43065059]
[1746610431472,0.50752593,1841.5,1841.4,18.0]
[1746610432373,0.50752593,1841.5,1841.3,10.86149427]
[1746610432574,0.50752593,1841.4,1841.3,5.43074634]
[1746610434682,0.50752593,1841.4,1841.2,5.43111154]
[1746610434975,1.10674971,1841.4,1841.2,5.43111154]
[1746610435475,0.50752593,1841.3,1841.2,5.43111154]
[1746610436644,7.24123038,1841.6,1841.3,5.43085099]
[1746610436875,0.5068331,1841.5,1841.3,5.43085099]
[1746610437193,0.5068331,1841.4,1841.3,5.43085099]
[1746610437511,0.5068331,1841.4,1841.2,5.43112452]
[1746610438087,0.5068331,1841.3,1841.2,5.43112452]
[1746610439445,7.24123038,1841.6,1841.2,10.86218855]
[1746610439644,0.72412304,1841.5,1841.2,10.86218855]
[1746610439844,1.23091626,1841.5,1841.2,5.43106403]
[1746610440078,6.6612932,1841.5,1841.2,5.43106403]
[1746610440483,0.50679322,1841.4,1841.2,5.43106403]
[1746610441285,0.50679322,1841.3,1841.2,5.43106403]
[1746610441782,0.50679322,1841.3,1841.2,7.1854982]
[1746610442084,6.22703454,1841.8,1841.2,7.1854982]
[1746610442085,3.0,1841.9,1841.6,5.4298729]
[1746610442283,3.05431747,1841.9,1841.7,5.42971164]
[1746610442479,0.50696831,1841.8,1841.6,5.4298729]
[1746610442780,0.50696831,1841.8,1841.7,5.42976597]
[1746610442980,0.7974,1842.0,1841.8,5.42928076]
[1746610443181,3.0,1842.1,1841.8,10.85857641]
[1746610443479,0.3,1842.0,1841.8,5.42928076]
[1746610443887,0.50693823,1841.9,1841.8,5.42928076]
[1746610444257,0.50693823,1841.9,1841.8,6.24468076]
[1746610444664,0.50693823,1841.9,1841.8,6.29896865]
[1746610444895,0.82331747,1842.2,1842.0,5.42887182]
[1746610445084,0.769,1842.2,1842.0,5.42887182]
[1746610445287,1.38870044,1842.2,1842.0,5.42887182]
[1746610445604,0.50695973,1842.1,1842.0,5.42887182]
[1746610448203,0.50695973,1842.1,1841.9,10.85793549]
[1746610448699,0.769,1842.2,1841.9,10.85793549]
[1746610448902,0.769,1842.2,1842.0,5.42887954]
[1746610449267,0.82331747,1842.2,1842.0,5.42887954]
[1746610449491,0.769,1842.2,1842.0,5.42887954]
[1746610449698,0.5065676,1842.1,1841.9,5.42895424]
[1746610450104,0.82331747,1842.2,1841.9,5.42895424]
[1746610450305,6.25164591,1842.2,1841.9,5.42895424]
[1746610450697,7.40404509,1842.2,1841.9,5.42895424]
[1746610450904,7.40404509,1842.2,1841.8,6.24485742]
[1746610450905,0.50646752,1842.1,1841.8,11.67411871]
[1746610451203,7.40404509,1842.2,1841.8,11.67411871]
[1746610451204,0.50646752,1842.0,1841.8,11.67411871]
[1746610451402,0.50646752,1842.0,1841.9,5.42917639]
[1746610451604,0.50646752,1842.1,1841.9,5.42917639]
[1746610451793,0.50646752,1842.1,1841.9,5.42911183]
[1746610452110,6.25164591,1842.2,1841.9,5.42911183]
[1746610452402,0.769,1842.2,1842.0,5.42885831]
[1746610453300,0.82331747,1842.2,1841.9,5.42911183]
[1746610454004,6.25166777,1842.2,1841.9,5.42911183]
[1746610456811,0.82331747,1842.2,1841.9,10.85814033]
[1746610457015,0.82331747,1842.2,1841.9,5.4290285]
[1746610457306,0.82331747,1842.2,1841.9,4.4290285]
[1746610458512,0.82331747,1842.2,1841.9,5.49640138]
[1746610459214,0.82331747,1842.2,1841.9,4.4290285]
[1746610461102,6.2516768,1842.2,1841.9,4.4290285]
[1746610462116,0.50630024,1842.1,1841.9,4.4290285]
[1746610462615,0.82331747,1842.2,1841.9,9.85801717]
[1746610462816,0.82331747,1842.2,1841.9,4.4290285]
[1746610463139,6.25163123,1842.2,1841.9,4.4290285]
[1746610463318,7.94682961,1842.2,1841.9,4.4290285]
[1746610463498,0.50647796,1842.1,1841.9,4.4290285]
[1746610464118,7.94682961,1842.2,1841.9,4.4290285]
[1746610465020,0.5066825,1842.1,1841.9,4.4290285]
[1746610465409,7.94682961,1842.2,1841.9,4.4290285]
[1746610466332,7.94682961,1842.2,1841.8,6.24472535]
[1746610466487,0.50708022,1842.1,1841.8,6.24472535]
[1746610466689,0.50708022,1842.1,1841.8,11.67402405]
[1746610466989,7.94682961,1842.2,1841.8,6.24468332]
[1746610467190,7.94682961,1842.2,1841.8,11.67394132]
[1746610467527,7.94682961,1842.2,1841.9,5.42911592]
[1746610468124,7.94682961,1842.2,1841.8,6.244658]
[1746610468292,0.50747222,1842.1,1841.8,11.67392604]
[1746610468623,0.50747222,1842.1,1841.9,5.42915885]
[1746610468830,0.50747222,1842.1,1841.8,10.85853946]
[1746610469027,0.50747222,1842.1,1841.8,5.429258]
[1746610469194,0.50747222,1842.0,1841.8,5.429258]
[1746610469617,7.94682961,1842.2,1841.8,5.429258]
[1746610469928,0.79468296,1842.1,1841.8,5.429258]
[1746610470226,0.50778725,1842.1,1841.8,10.85853085]
[1746610470426,0.50778725,1842.1,1841.9,18.0]
[1746610470739,0.50778725,1842.0,1841.9,18.0]
[1746610472925,9.7365689,1842.0,1841.9,18.0]
[1746610473331,5.42935314,1841.9,1841.5,5.43017505]
[1746610473627,5.42935314,1841.9,1841.6,5.43004198]
[1746610473818,0.05431747,1841.9,1841.6,5.43004198]
[1746610474001,0.50778725,1841.8,1841.6,5.43004198]
[1746610474533,0.50778725,1841.7,1841.6,5.43004198]
[1746610475414,0.50778725,1841.7,1841.5,5.43018132]
[1746610475915,0.50778725,1841.7,1841.5,5.43016658]
[1746610476115,0.50778725,1841.6,1841.5,5.43016658]
[1746610477637,5.48353275,1841.9,1841.5,5.43016658]
[1746610477815,0.54835327,1841.8,1841.5,5.43016658]
[1746610478015,0.50769406,1841.7,1841.5,5.43016658]
[1746610478633,0.50769406,1841.6,1841.5,5.43016658]
[1746610478814,5.48353275,1841.9,1841.6,5.43001182]
[1746610479235,5.48353275,1841.9,1841.5,5.43016658]
[1746610479439,5.48353275,1841.9,1841.5,10.86036365]
[1746610479639,5.48353275,1841.9,1841.5,11.36805365]
[1746610480038,5.48353275,1841.9,1841.5,11.36804496]
[1746610480739,5.48353275,1841.9,1841.6,5.43006013]
[1746610482945,0.05431747,1841.9,1841.6,5.43006013]
[1746610483245,0.05431747,1841.9,1841.7,5.42971317]
[1746610483445,0.05431747,1841.9,1841.6,5.43006013]
[1746610483646,0.05431747,1841.9,1841.6,6.51608386]
[1746610485156,0.05431747,1841.9,1841.6,6.51591595]
[1746610485946,0.05431747,1841.9,1841.6,1.08602373]
[1746610486149,0.8166,1842.2,1841.9,5.42917639]
[1746610486346,0.87091747,1842.2,1841.9,5.42917639]
[1746610486516,0.87091747,1842.2,1841.9,10.85816603]
[1746610486716,0.87091747,1842.2,1841.9,5.42898964]
[1746610487848,0.87091747,1842.2,1841.7,5.48398756]
[1746610487849,0.8166,1842.2,1841.7,5.48398756]
[1746610488013,0.8166,1842.2,1842.0,5.42877198]
[1746610488947,0.8166,1842.2,1842.1,5.42858693]
[1746610490966,1.32382033,1842.2,1842.1,5.42858693]
[1746610494562,0.50722033,1842.2,1842.1,5.42858693]
[1746610495834,0.50722033,1842.2,1842.0,5.42867781]
[1746610496363,0.50722033,1842.1,1842.0,5.42867781]
[1746610496867,0.50722033,1842.2,1842.0,5.42867781]
[1746610497263,0.50722033,1842.1,1842.0,5.42867781]
[1746610497765,0.50722033,1842.2,1842.0,5.42867781]
[1746610498063,2.77956619,1842.2,1842.0,5.42867781]
[1746610498366,0.50722033,1842.1,1842.0,5.42867781]
[1746610550332,0.50722033,1842.1,1842.0,10.22108263]
[1746610550526,1.94792726,1842.9,1842.6,5.42690501]
[1746610550828,1.94792726,1842.8,1842.4,6.21518002]
[1746610550991,1.94792726,1842.5,1842.2,5.42807886]
[1746610551188,1.94792726,1842.4,1842.2,5.42807886]
[1746610551427,1.94792726,1842.3,1842.0,5.42872392]
[1746610551635,1.94792726,1842.4,1842.1,5.42842645]
[1746610552334,1.94792726,1842.4,1842.1,5.42837608]
[1746610552497,1.94792726,1842.4,1842.2,18.0]
[1746610553624,7.3756696,1842.4,1842.2,18.0]
[1746610554034,2.00224473,1842.4,1842.2,18.0]
[1746610555419,1.94792726,1842.4,1842.2,18.0]
[1746610557306,1.94792726,1842.4,1842.1,10.85676856]
[1746610558234,1.94792726,1842.4,1842.1,5.42838283]
[1746610558598,2.00224473,1842.4,1842.1,5.42838283]
[1746610558895,2.82406749,1842.4,1842.1,5.42838283]
[1746610559096,8.25188228,1842.4,1842.1,5.42838283]
[1746610559331,8.19756481,1842.4,1842.1,5.42838283]
[1746610559529,2.76975002,1842.4,1842.1,5.42838283]
[1746610560248,2.76975002,1842.4,1842.1,10.85682441]
[1746610560399,2.76975002,1842.4,1842.1,5.42838283]
[1746610561145,8.19754866,1842.4,1842.1,5.42838283]
[1746610561343,0.82182276,1842.4,1842.2,5.42822069]
[1746610561504,8.16384864,1842.5,1842.2,5.42822069]
[1746610561705,8.21816611,1842.5,1842.1,5.42838283]
[1746610562447,13.64580539,1842.5,1842.1,5.42838283]
[1746610562651,8.16384864,1842.5,1842.1,5.42838283]
[1746610563749,13.64583433,1842.5,1842.1,5.42838283]
[1746610563905,14.95610029,1842.5,1842.1,5.42838283]
[1746610564466,9.52843207,1842.5,1842.1,5.42838283]
[1746610564653,9.58274954,1842.5,1842.1,5.42838283]
[1746610566724,1.94792726,1842.4,1842.1,5.42838283]
[1746610566924,0.8097,1842.3,1842.1,5.42838283]
[1746610570754,0.8097,1842.3,1842.1,10.85678669]
[1746610571059,0.8097,1842.3,1842.1,5.42838283]
[1746610573357,0.8097,1842.3,1842.1,5.42837442]
[1746610575817,2.75762726,1842.3,1842.0,9.03421095]
[1746610576090,1.94792726,1842.2,1842.0,9.03421095]
[1746610576469,8.18570755,1842.3,1842.0,9.03421095]
[1746610576961,8.24002502,1842.3,1842.0,9.03421095]
[1746610577487,5.42831023,1842.2,1842.0,9.03421095]
[1746610578214,5.42831023,1842.2,1842.0,5.366]
[1746610578371,8.18570755,1842.3,1842.0,10.79487146]
[1746610578575,9.60137845,1842.3,1842.0,10.79487146]
[1746610578881,9.60137845,1842.3,1842.0,5.366]
[1746610579393,5.42829567,1842.2,1842.0,5.366]
[1746610579806,9.54706098,1842.3,1842.0,5.366]
[1746610580498,9.54706098,1842.3,1842.0,10.79487816]
[1746610580707,9.54706098,1842.3,1842.1,18.0]
[1746610580908,9.60137845,1842.3,1842.1,18.0]
[1746610584123,9.60137845,1842.3,1842.0,5.4288666]
[1746610585725,4.17329816,1842.3,1842.0,5.4288666]
[1746610586490,9.60130594,1842.3,1842.0,5.4288666]
[1746610587616,4.17329816,1842.3,1842.0,5.4288666]
[1746610588819,9.60139539,1842.3,1842.0,5.4288666]
[1746610592823,4.17329816,1842.3,1842.0,5.4288666]
[1746610593922,9.60131598,1842.3,1842.0,5.4288666]
[1746610594223,4.17329816,1842.3,1842.0,5.42868374]
[1746610594523,4.17329816,1842.3,1842.0,10.8573781]
[1746610594827,4.17329816,1842.3,1842.1,5.4285607]
[1746610595631,4.17329816,1842.3,1842.0,5.42868374]
[1746610597332,4.17329816,1842.3,1842.0,10.85735448]
[1746610597722,4.17329816,1842.3,1842.0,5.42867074]
[1746610599452,2.81194473,1842.3,1842.0,5.42866941]
[1746610599611,0.84051747,1842.4,1842.1,5.4282928]
[1746610599807,10.37548077,1842.5,1842.2,5.42822526]
[1746610600007,10.42979824,1842.5,1842.1,6.1894928]
[1746610601017,10.42979824,1842.5,1842.2,5.42825628]
[1746610601337,12.09411833,1842.5,1842.2,5.42825628]
[1746610601509,12.03980086,1842.5,1842.2,5.42825628]
[1746610601701,0.05431747,1842.4,1842.1,6.1894928]
[1746610602406,10.42979824,1842.5,1842.1,6.1894928]
[1746610602927,10.42979824,1842.5,1842.2,5.42827664]
[1746610604035,1.94792726,1842.4,1842.1,6.1894928]
[1746610604240,8.15861697,1842.4,1842.0,5.42878849]
[1746610604436,7.43041713,1842.3,1841.9,9.89869229]
[1746610604607,7.43041713,1842.3,1841.9,15.32765341]
[1746610604810,7.43041713,1842.3,1842.0,5.42886991]
[1746610605007,8.79452781,1842.3,1842.0,5.42886991]
[1746610605704,3.36635541,1842.3,1842.0,9.09708086]
[1746610605903,7.43031324,1842.3,1842.0,9.09708086]
[1746610607050,2.00224473,1842.3,1842.1,5.42857141]
[1746610607258,0.05431747,1842.3,1842.0,9.09692426]
[1746610607610,0.05431747,1842.3,1842.0,14.52562004]
[1746610607824,0.05431747,1842.3,1842.0,9.09690673]
[1746610608258,0.05431747,1842.3,1842.1,5.42857431]
[1746610612572,0.7828,1842.4,1842.1,11.94268798]
[1746610613298,0.7828,1842.4,1842.2,5.4282687]
[1746610613566,10.37550442,1842.5,1842.2,5.4282687]
[1746610613763,10.42982189,1842.5,1842.2,5.4282687]
[1746610615026,3.05431747,1842.5,1842.3,5.42774944]
[1746610615228,0.82761747,1842.6,1842.3,6.05308438]
[1746610615641,2.77554473,1842.6,1842.4,5.42770299]
[1746610618382,2.72122726,1842.6,1842.4,5.42761823]
[1746610618583,1.94792726,1842.6,1842.4,5.42761823]
[1746610619076,1.94792726,1842.6,1842.4,10.85512932]
[1746610619282,1.94792726,1842.7,1842.5,5.42740841]
[1746610619592,2.00224473,1842.7,1842.5,5.42740841]
[1746610619783,2.00224473,1842.7,1842.4,5.42751109]
[1746610619953,1.94792726,1842.6,1842.4,5.42751109]
[1746610620744,1.94792726,1842.6,1842.3,5.42784643]
[1746610620989,1.94792726,1842.6,1842.3,10.85563188]
[1746610622086,1.94792726,1842.6,1842.4,5.42765348]
[1746610624084,1.84792726,1842.6,1842.4,5.42765348]
[1746610624544,1.84792726,1842.6,1842.4,5.42754435]
[1746610624743,11.57663524,1843.0,1842.7,5.42668332]
[1746610624972,2.00224473,1842.9,1842.7,5.42668332]
[1746610625272,1.94792726,1842.9,1842.7,5.4266653]
[1746610625446,1.94792726,1842.8,1842.6,5.42698527]
[1746610625648,2.00224473,1842.8,1842.6,6.51240909]
[1746610625846,1.94792726,1842.8,1842.6,5.42698527]
[1746610628049,1.94792726,1842.8,1842.6,10.85389363]
[1746610628260,2.00224473,1842.9,1842.7,5.42681934]
[1746610634365,2.00224473,1842.9,1842.6,10.85383759]
[1746610634567,2.00224473,1842.9,1842.7,5.42677772]
[1746610636299,7.42853551,1842.9,1842.5,5.42721644]
[1746610636602,8.14668693,1842.8,1842.5,5.42721644]
[1746610636775,1.94792726,1842.7,1842.4,6.74919626]
[1746610636971,1.94792726,1842.7,1842.5,6.10221301]
[1746610637299,8.20158879,1842.6,1842.3,5.4278642]
[1746610637511,1.94792726,1842.5,1842.3,5.42799761]
[1746610637883,1.94792726,1842.5,1842.3,10.85578477]
[1746610638202,1.94792726,1842.5,1842.3,5.42778716]
[1746610638706,1.94792726,1842.5,1842.3,10.85566834]
[1746610639003,1.94792726,1842.5,1842.3,5.42778716]
[1746610639186,1.94792726,1842.5,1842.4,18.0]
[1746610639904,2.77444473,1842.6,1842.4,18.0]
[1746610640404,2.72012726,1842.6,1842.4,23.42755313]
[1746610640703,5.00224473,1842.7,1842.4,23.42755313]
[1746610641693,4.94792726,1842.7,1842.5,5.42739507]
[1746610644208,0.7648,1842.8,1842.5,6.51273177]
[1746610644504,2.76704473,1842.8,1842.6,5.42702952]
[1746610645702,0.81911747,1842.8,1842.6,5.42702952]
[1746610646774,0.81911747,1842.8,1842.5,5.42720415]
[1746610647002,3.05431747,1842.9,1842.7,5.42678669]
[1746610647204,3.05431747,1842.9,1842.6,6.20709657]
[1746610647405,4.24786186,1842.9,1842.6,6.20709657]
[1746610648006,4.24786186,1842.9,1842.6,6.20693198]
[1746610648805,4.24786186,1842.9,1842.6,5.42693198]
[1746610652510,8.48057924,1842.9,1842.6,5.42693198]
[1746610652810,3.08734005,1842.8,1842.5,5.42721206]
[1746610653012,8.51388392,1842.8,1842.5,5.42721206]
[1746610653319,8.56820139,1842.8,1842.4,6.22312197]
[1746610653507,3.09064005,1842.6,1842.3,5.42780985]
[1746610653711,3.14495752,1842.6,1842.3,6.95451193]
[1746610654312,8.57211247,1842.6,1842.3,6.95451193]
[1746610655114,8.57211247,1842.6,1842.3,5.42780985]
[1746610655286,3.14495752,1842.6,1842.3,5.42780985]
[1746610659410,8.57216476,1842.6,1842.3,5.42780985]
[1746610660421,3.14495752,1842.6,1842.3,5.42780985]
[1746610661583,8.57216376,1842.6,1842.3,5.42780985]
[1746610661783,8.57216376,1842.6,1842.2,11.59914345]
[1746610661995,8.57216376,1842.6,1842.3,5.42798549]
[1746610662719,8.57216376,1842.6,1842.3,10.78798549]
[1746610664425,8.57216376,1842.6,1842.3,5.36]
[1746610664645,8.5116406,1842.4,1842.3,5.36]
[1746610664794,8.56595807,1842.4,1842.3,5.36]
[1746610664993,9.96530784,1842.4,1842.3,5.36]
[1746610666035,4.53740729,1842.4,1842.3,5.36]
[1746610666231,3.13805752,1842.4,1842.3,5.36]
[1746610666590,3.13805752,1842.4,1842.2,5.42829149]
[1746610666891,3.13805752,1842.4,1842.2,10.78829149]
[1746610667731,3.13805752,1842.4,1842.2,5.36]
[1746610671845,2.81432353,1842.4,1842.2,5.36]
[1746610673054,2.81432353,1842.4,1842.2,10.7882406]
[1746610675897,2.81432353,1842.4,1842.1,5.42837826]
[1746610676031,2.81432353,1842.4,1842.2,5.36]
[1746610676545,2.81432353,1842.4,1842.1,10.85681646]
[1746610676752,2.81432353,1842.4,1842.2,5.36]
[1746610677260,8.24205594,1842.4,1842.2,5.36]
[1746610677959,2.81432353,1842.4,1842.2,5.36]
[1746610678341,2.81432353,1842.4,1842.2,10.78828592]
[1746610678966,2.81432353,1842.4,1842.2,5.36]
[1746610679165,2.81432353,1842.4,1842.1,5.42837826]
[1746610679471,8.24208448,1842.4,1842.1,10.78837826]
[1746610679680,2.81432353,1842.4,1842.1,10.78837826]
[1746610680179,1.94740606,1842.3,1842.1,5.36]
[1746610681576,1.94740606,1842.3,1842.1,10.78849026]
[1746610681874,8.24205368,1842.4,1842.1,10.78849026]
[1746610682190,4.18128491,1842.4,1842.1,10.78849026]
[1746610682484,2.23387885,1842.4,1842.2,5.42827258]
[1746610682695,0.86691747,1842.4,1842.2,5.42827258]
[1746610683190,0.05431747,1842.5,1842.2,5.42817277]
[1746610683398,3.8045,1842.6,1842.4,5.42749354]
[1746610683399,3.0,1842.6,1842.4,5.42749354]
[1746610683891,10.6045,1842.8,1842.5,5.42714245]
[1746610684189,14.40405504,1842.8,1842.5,5.42714245]
[1746610684344,14.34973757,1842.8,1842.5,5.42714245]
[1746610685656,4.54973757,1842.8,1842.5,5.42714245]
[1746610685861,4.54973757,1842.8,1842.5,10.78714245]
[1746610685862,8.08318005,1842.8,1842.5,10.78714245]
[1746610686607,0.85881747,1842.8,1842.6,5.4270085]
[1746610686776,0.8045,1842.8,1842.6,5.4270085]
[1746610690932,6.10571851,1842.9,1842.6,10.85393117]
[1746610691115,3.0,1843.0,1842.8,5.42652485]
[1746610691592,2.27110104,1843.0,1842.7,10.85323819]
[1746610691774,2.27110104,1843.0,1842.7,5.4266156]
[1746610692093,2.27110104,1843.0,1842.7,5.42660117]
[1746610693080,7.69706784,1843.0,1842.7,5.42660117]
[1746610693612,7.69771266,1842.8,1842.4,5.42756178]
[1746610693811,0.83461747,1842.7,1842.5,5.359]
[1746610694308,6.26147506,1842.7,1842.4,5.42754545]
[1746610694509,2.27110104,1842.6,1842.4,5.359]
[1746610694715,0.05431747,1842.5,1842.3,5.359]
[1746610695020,3.03940104,1842.4,1842.2,9.02721095]
[1746610695313,3.03940104,1842.4,1842.2,14.45539829]
[1746610695496,3.03940104,1842.4,1842.2,9.09639829]
[1746610695902,3.03940104,1842.4,1842.2,5.42818734]
[1746610696519,3.03940104,1842.4,1842.1,14.45561536]
[1746610697211,3.03940104,1842.4,1842.1,19.884013]
[1746610697414,3.03940104,1842.4,1842.1,14.45560859]
[1746610697718,3.03940104,1842.4,1842.1,9.09660859]
[1746610697912,3.03940104,1842.4,1842.1,3.66821095]
[1746610697913,5.48250529,1842.3,1842.1,3.66821095]
[1746610698885,0.05431747,1842.3,1842.0,5.42878866]
[1746610699118,0.05431747,1842.3,1842.0,10.78778866]
[1746610699619,5.48243811,1842.3,1842.0,5.359]
[1746610700521,2.27110104,1842.2,1841.8,9.91124143]
[1746610700700,7.69949205,1842.2,1841.9,10.78916568]
[1746610701104,2.32541851,1842.2,1841.9,10.78916568]
[1746610702931,7.75378916,1842.2,1841.9,5.42916568]
[1746610703092,0.7997,1842.1,1841.9,5.359]
[1746610703292,0.7997,1842.1,1841.9,10.78815276]
[1746610704186,0.7997,1842.1,1841.9,5.42915276]
[1746610704390,0.7997,1842.1,1841.9,10.78815276]
[1746610706129,0.7997,1842.1,1841.9,5.42915276]
[1746610706333,0.7997,1842.1,1841.9,10.78815276]
[1746610707551,0.7997,1842.1,1841.9,5.359]
[1746610707863,0.05431747,1842.2,1841.9,5.359]
[1746610707864,0.05431747,1842.2,1842.0,5.42888165]
[1746610708213,0.05431747,1842.2,1841.9,10.78792867]
[1746610708543,0.05431747,1842.2,1841.9,16.21692055]
[1746610708841,0.05431747,1842.2,1842.0,5.4288799]
[1746610709220,0.05431747,1842.2,1841.9,10.78802509]
[1746610709417,0.05431747,1842.2,1841.9,11.9481976]
[1746610709744,6.21032064,1842.3,1841.9,17.37715805]
[1746610710055,6.26463811,1842.3,1841.9,16.21698554]
[1746610710455,6.26463811,1842.3,1842.0,5.42874042]
[1746610710743,3.83651747,1842.3,1842.0,5.4286682]
[1746610711810,3.7822,1842.3,1842.1,5.42837029]
[1746610712018,3.7934,1842.5,1842.2,5.42802941]
[1746610712343,0.7934,1842.7,1842.4,5.42770299]
[1746610712511,0.05431747,1842.7,1842.4,10.85518792]
[1746610712857,0.05431747,1842.8,1842.5,10.85446075]
[1746610713023,0.05431747,1842.8,1842.6,5.42702608]
[1746610713348,0.84771747,1842.9,1842.6,5.42702608]
[1746610713927,3.84771747,1842.9,1842.6,5.42702608]
[1746610715578,0.40771545,1843.1,1842.6,1.90913112]
[1746610715859,0.05431747,1843.1,1842.8,5.42642878]
[1746610717819,5.47996476,1843.1,1842.8,5.42642878]
[1746610718759,0.05431747,1843.1,1842.8,5.42642878]
[1746610719257,0.05431747,1843.1,1842.8,5.42639388]
[1746610720655,0.05431747,1843.1,1842.9,5.42622934]
[1746610720859,0.05431747,1843.1,1843.0,5.42593597]
[1746610721157,0.05431747,1843.2,1843.0,5.42593597]
[1746610723264,0.05431747,1843.2,1842.9,6.24464747]
[1746610724163,0.05431747,1843.2,1842.9,6.24463571]
[1746610727157,0.05431747,1843.2,1842.9,6.24462471]
[1746610728359,0.05431747,1843.2,1842.9,6.24462145]
[1746610728557,0.05431747,1843.2,1842.9,6.24461294]
[1746610728731,0.05431747,1843.2,1842.9,11.67064682]
[1746610729065,0.05431747,1843.2,1843.0,5.42577808]
[1746610730562,0.05431747,1843.2,1842.9,6.24462627]
[1746610731164,0.05431747,1843.2,1842.9,11.67065254]
[1746610731367,0.05431747,1843.2,1842.9,6.24462627]
[1746610732570,0.05431747,1843.2,1842.9,11.67067613]
[1746610732863,0.7583,1843.8,1843.6,5.42414731]
[1746610733064,0.05431747,1843.9,1843.8,5.42357798]
[1746610733238,8.5067622,1844.0,1843.6,5.4240605]
[1746610734269,3.02940104,1844.0,1843.7,6.246342]
[1746610735062,3.02940104,1844.0,1843.7,0.8226]
[1746610735367,8.45245528,1844.0,1843.7,0.8226]
[1746610736268,8.50677275,1844.0,1843.7,0.8226]
[1746610736966,5.42329228,1843.9,1843.7,0.8226]
[1746610737168,8.50690966,1844.0,1843.7,0.8226]
[1746610737346,13.93016635,1844.0,1843.7,0.8226]
[1746610737546,8.45259219,1844.0,1843.7,0.8226]
[1746610737751,5.42331876,1843.9,1843.7,0.8226]
[1746610738065,5.42331876,1843.9,1843.6,2.42503589]
[1746610738960,8.45261996,1844.0,1843.6,2.42503589]
[1746610740073,8.45261996,1844.0,1843.6,7.84918238]
[1746610740374,5.42283296,1844.1,1843.7,0.59187917]
[1746610740568,5.47715043,1844.1,1843.7,6.01574439]
[1746610740772,13.92182099,1844.2,1843.7,6.06997614]
[1746610741073,5.42274362,1844.1,1843.7,6.06997614]
[1746610741389,5.42274362,1844.1,1843.7,6.01574439]
[1746610741691,5.47706109,1844.1,1843.7,6.01574439]
[1746610743100,5.47706109,1844.1,1843.7,11.43953383]
[1746610743244,8.49912364,1844.2,1843.8,6.56335433]
[1746610743446,6.58102951,1844.3,1843.9,0.8256]
[1746610743806,12.05767936,1844.3,1843.9,6.24876584]
[1746610743962,12.00336189,1844.3,1843.9,6.24876584]
[1746610744162,5.42242209,1844.2,1843.9,0.8256]
[1746610744360,8.42192465,1844.4,1844.0,5.42298742]
[1746610744658,5.2901731,1844.5,1844.1,5.47678822]
[1746610744863,5.42185998,1844.4,1844.1,0.05422449]
[1746610745263,5.42185998,1844.4,1844.1,5.47691508]
[1746610745460,10.69245304,1844.6,1844.2,5.42230894]
[1746610745663,5.42076009,1844.8,1844.4,5.42166654]
[1746610745875,5.42076009,1844.8,1844.4,10.84331493]
[1746610746150,5.42015649,1845.0,1844.6,5.42106285]
[1746610746502,5.42037444,1844.9,1844.6,5.47527407]
[1746610746661,5.42015649,1845.0,1844.6,5.47527407]
[1746610746863,5.42015649,1845.0,1844.5,6.19715596]
[1746610746864,5.42065078,1844.8,1844.5,6.19715596]
[1746610747067,13.1121766,1844.9,1844.5,6.19715596]
[1746610747362,7.69157596,1844.9,1844.5,6.19715596]
[1746610747889,13.1121773,1844.9,1844.5,6.19715596]
[1746610748077,5.4206526,1844.8,1844.5,6.19715596]
[1746610748386,7.69157596,1844.9,1844.5,6.19715596]
[1746610749084,7.69157596,1844.9,1844.5,0.7758]
[1746610749386,5.42073977,1844.8,1844.5,0.7758]
[1746610751684,5.4203807,1844.9,1844.6,0.7833]
[1746610751886,5.4203807,1844.9,1844.6,6.1363]
[1746610753086,5.4203807,1844.9,1844.6,6.19050606]
[1746610753491,5.4203807,1844.9,1844.6,6.1363]
[1746610753711,5.42064562,1844.8,1844.6,6.1363]
[1746610754400,5.42064562,1844.8,1844.6,0.7833]
[1746610754560,5.42064562,1844.8,1844.6,6.1353]
[1746610755003,5.4203807,1844.9,1844.6,6.1353]
[1746610756015,10.84101409,1844.9,1844.6,6.1353]
[1746610756398,5.42067311,1844.8,1844.6,6.1353]
[1746610756562,5.42067311,1844.8,1844.6,5.352]
[1746610756757,5.42093565,1844.7,1844.6,5.352]
[1746610757062,5.42102119,1844.7,1844.3,5.42191347]
[1746610757295,5.42102119,1844.7,1844.5,5.352]
[1746610757801,5.42198441,1844.4,1844.2,5.352]
[1746610757991,13.11512789,1844.4,1844.1,6.1471]
[1746610758189,7.69308545,1844.4,1844.1,0.7951]
[1746610758398,7.69308545,1844.4,1844.1,5.97380735]
[1746610759376,5.42188792,1844.4,1844.1,5.97380735]
[1746610760198,5.42188792,1844.4,1844.1,6.02802878]
[1746610761115,5.42188792,1844.4,1844.2,18.0]
[1746610762701,5.42188792,1844.4,1844.1,5.352]
[1746610762880,5.42188792,1844.4,1844.1,5.40622145]
[1746610763580,5.42188792,1844.4,1844.1,5.352]
[1746610767327,5.42188792,1844.4,1844.1,5.40622147]
[1746610768427,5.42188792,1844.4,1844.1,5.352]
[1746610769592,5.42188792,1844.4,1844.1,5.40622149]
[1746610770636,5.42188792,1844.4,1844.1,5.352]
[1746610770931,5.42212325,1844.3,1844.1,5.352]
[1746610772831,5.42212325,1844.3,1843.9,6.59034896]
[1746610773630,5.42213279,1844.3,1843.9,6.59034242]
[1746610773997,5.42213279,1844.3,1843.9,12.01342561]
[1746610774315,5.42213279,1844.3,1843.9,6.59033113]
[1746610774523,5.42213279,1844.3,1844.0,0.65903311]
[1746610775098,5.42213279,1844.3,1844.0,18.65903311]
[1746610776433,5.42244452,1844.2,1844.0,18.0]
[1746610776733,6.22674452,1844.2,1844.0,18.0]
[1746610777132,5.42213279,1844.3,1844.0,18.0]
[1746610778532,6.23228155,1844.4,1844.0,23.42298008]
[1746610778701,6.23228155,1844.4,1844.1,0.753]
[1746610779332,11.65432444,1844.4,1844.1,0.753]
[1746610780331,5.42198155,1844.4,1844.1,0.753]
[1746610782647,10.84405663,1844.4,1844.1,0.753]
[1746610783066,5.42231142,1844.3,1844.1,0.753]
[1746610783222,5.42243459,1844.2,1843.9,7.34687354]
[1746610783558,5.42231142,1844.3,1843.9,7.34687354]
[1746610784056,10.84468363,1844.3,1843.9,7.34687354]
[1746610784253,5.42243096,1844.2,1843.9,7.34687354]
[1746610784660,5.42231142,1844.3,1843.9,7.34687354]
[1746610785822,10.84468574,1844.3,1843.9,7.34687354]
[1746610786262,5.42243292,1844.2,1843.9,1.92374794]
[1746610786651,5.42231142,1844.3,1843.9,7.34692079]
[1746610788061,10.84466001,1844.3,1843.9,7.34692079]
[1746610788251,5.42231142,1844.3,1843.9,7.34692079]
[1746610788965,5.42231142,1844.3,1843.9,7.34683621]